bitfinex-derivatives/quotes_BTCF0:USTF0_20250324
["timestamp","ask_amount","ask_price","bid_price","bid_amount"]
[1742790067361,0.03614,86837.0,86836.0,0.1157688]
[1742790067562,0.0355,86837.0,86836.0,0.1157688]
[1742790067757,0.0355,86837.0,86836.0,0.1846688]
[1742790069057,0.3608,86863.0,86855.0,0.1151436]
[1742790069374,0.00860612,86868.0,86867.0,0.1151277]
[1742790069569,0.00860612,86868.0,86867.0,0.1157277]
[1742790069570,0.12437242,86868.0,86867.0,0.1157277]
[1742790069956,0.1157663,86868.0,86867.0,0.1157277]
[1742790070871,0.1508663,86868.0,86867.0,0.1157277]
[1742790073164,0.1508663,86868.0,86859.0,0.01164124]
[1742790073165,0.2671863,86868.0,86840.0,0.20522524]
[1742790073472,0.1151515,86849.0,86848.0,0.0006]
[1742790073765,0.3608,86854.0,86831.0,0.36126066]
[1742790073766,8e-05,86848.0,86835.0,0.1151697]
[1742790073974,8e-05,86848.0,86833.0,0.32039594]
[1742790073975,0.1151714,86834.0,86833.0,0.32039594]
[1742790075561,0.1151714,86834.0,86833.0,0.20522524]
[1742790075863,0.1151741,86832.0,86829.0,0.27363365]
[1742790076168,0.1151767,86830.0,86829.0,0.27363365]
[1742790076379,0.1151767,86830.0,86825.0,0.00017269]
[1742790076380,0.115182,86826.0,86825.0,0.00017269]
[1742790076569,0.1151953,86816.0,86815.0,0.11565455]
[1742790077075,0.1141953,86816.0,86815.0,0.11565455]
[1742790077568,0.0359,86817.0,86815.0,0.11565455]
[1742790077768,0.0359,86817.0,86816.0,0.1151953]
[1742790078075,0.0359,86817.0,86816.0,0.1882953]
[1742790078868,0.151094,86817.0,86816.0,0.1882953]
[1742790079169,0.0359,86817.0,86816.0,0.1882953]
[1742790079376,0.152094,86817.0,86816.0,0.1888953]
[1742790079865,0.152094,86817.0,86816.0,0.1157953]
[1742790081271,0.153094,86817.0,86816.0,0.1157953]
[1742790081567,0.153094,86817.0,86816.0,0.1863953]
[1742790083776,0.002,86817.0,86816.0,0.1863953]
[1742790084075,0.116194,86817.0,86816.0,0.1863953]
[1742790084274,0.117194,86817.0,86816.0,0.1863953]
[1742790085474,0.117274,86817.0,86816.0,0.1863953]
[1742790085870,0.115194,86817.0,86816.0,0.1863953]
[1742790086176,0.116194,86817.0,86816.0,0.1863953]
[1742790087968,0.116194,86817.0,86816.0,0.0712]
[1742790088169,0.116194,86817.0,86816.0,0.0006]
[1742790088369,0.116194,86817.0,86816.0,0.1157953]
[1742790088778,0.116194,86817.0,86816.0,0.1512953]
[1742790090269,0.151994,86817.0,86816.0,0.1512953]
[1742790091067,0.0368,86817.0,86816.0,0.1512953]
[1742790091270,0.151994,86817.0,86816.0,0.1512953]
[1742790093469,0.0368,86817.0,86816.0,0.1512953]
[1742790093669,0.151994,86817.0,86816.0,0.1512953]
[1742790096474,0.151994,86817.0,86816.0,0.0006]
[1742790096673,0.151994,86817.0,86816.0,0.1157953]
[1742790097082,0.151994,86817.0,86816.0,0.1507953]
[1742790097280,0.151994,86817.0,86816.0,0.1848953]
[1742790097769,0.0368,86817.0,86816.0,0.1848953]
[1742790099077,0.001,86817.0,86816.0,0.1848953]
[1742790099278,0.116194,86817.0,86816.0,0.1848953]
[1742790099578,0.001,86817.0,86816.0,0.1848953]
[1742790099975,0.116194,86817.0,86816.0,0.1848953]
[1742790100174,0.150994,86817.0,86816.0,0.1848953]
[1742790100780,0.001,86817.0,86816.0,0.1848953]
[1742790101179,0.116194,86817.0,86816.0,0.1848953]
[1742790101679,0.150894,86817.0,86816.0,0.1848953]
[1742790102182,0.150894,86817.0,86816.0,0.0006]
[1742790102381,0.1152059,86808.0,86807.0,0.11537989]
[1742790102679,0.1163659,86808.0,86807.0,0.11597989]
[1742790102877,0.12786187,86808.0,86807.0,0.11597989]
[1742790103070,0.19936187,86808.0,86807.0,0.11597989]
[1742790103784,0.19936187,86808.0,86807.0,0.15227989]
[1742790104085,0.19936187,86808.0,86807.0,0.11597989]
[1742790104488,0.19936187,86808.0,86807.0,0.11697989]
[1742790104988,0.19936187,86808.0,86807.0,0.15327989]
[1742790105373,0.19936187,86808.0,86807.0,0.00377269]
[1742790105581,0.19936187,86808.0,86807.0,0.00317269]
[1742790106179,0.0576117,86795.0,86778.0,0.3608]
[1742790106374,0.27934,86794.0,86793.0,0.1152245]
[1742790106575,0.07370001,86794.0,86793.0,0.1158245]
[1742790106890,0.00120001,86794.0,86793.0,0.1840245]
[1742790107876,0.0001728,86802.0,86801.0,0.1152152]
[1742790108077,0.034,86828.0,86827.0,0.1151807]
[1742790108385,0.1491794,86828.0,86827.0,0.1157807]
[1742790108581,0.1503394,86828.0,86827.0,0.1153807]
[1742790109282,0.1870394,86828.0,86827.0,0.1153807]
[1742790109678,0.1880394,86828.0,86827.0,0.1153807]
[1742790109881,0.1880394,86828.0,86827.0,0.1495807]
[1742790111386,0.1910394,86828.0,86827.0,0.1495807]
[1742790113889,0.1570394,86828.0,86827.0,0.1495807]
[1742790115784,0.1570394,86828.0,86827.0,0.1153807]
[1742790115982,0.1570394,86828.0,86827.0,0.1534807]
[1742790117593,0.1570394,86828.0,86827.0,0.1153807]
[1742790118884,0.1570394,86828.0,86827.0,0.1520807]
[1742790120499,0.04186,86828.0,86827.0,0.1520807]
[1742790120686,0.04186,86828.0,86827.0,0.5128807]
[1742790120885,0.1570394,86828.0,86827.0,0.5128807]
[1742790121598,0.00516,86828.0,86827.0,0.5128807]
[1742790121795,0.004,86828.0,86827.0,0.5487807]
[1742790122997,0.004,86828.0,86827.0,0.56052811]
[1742790125904,0.0004,86840.0,86839.0,0.1151648]
[1742790126202,0.0386,86853.0,86848.0,0.1151529]
[1742790126398,0.00124,86849.0,86848.0,0.1158329]
[1742790126593,0.0362,86852.0,86851.0,0.1151489]
[1742790126900,0.03740001,86852.0,86851.0,0.1157889]
[1742790127088,0.03736,86852.0,86851.0,0.1157889]
[1742790127293,0.1911076,86852.0,86851.0,0.1157889]
[1742790133305,0.1911076,86852.0,86851.0,0.00064]
[1742790133498,0.1151582,86844.0,86828.0,0.3608]
[1742790133700,0.5935182,86844.0,86838.0,0.1151657]
[1742790133902,0.5935182,86844.0,86843.0,0.0007728]
[1742790134208,0.5935182,86844.0,86843.0,0.0001728]
[1742790134209,0.70866786,86844.0,86843.0,0.0001728]
[1742790134402,0.70866786,86844.0,86827.0,0.0367]
[1742790134403,0.0575932,86825.0,86815.0,0.2740944]
[1742790134597,0.2303775,86823.0,86822.0,0.0358]
[1742790134799,0.2307375,86823.0,86822.0,0.1515873]
[1742790135000,0.00136,86823.0,86822.0,0.1515873]
[1742790135299,0.11154039,86880.0,86832.0,0.1151741]
[1742790135300,0.0351,86833.0,86832.0,0.1151741]
[1742790135500,0.0575709,86857.0,86842.0,0.1151608]
[1742790135501,0.0347,86843.0,86842.0,0.1151608]
[1742790135705,0.1151544,86847.0,86846.0,0.1151555]
[1742790135901,0.1165944,86847.0,86846.0,0.1158355]
[1742790136409,0.1165944,86847.0,86846.0,0.1874355]
[1742790138993,0.1175944,86847.0,86846.0,0.1874355]
[1742790139195,0.1536944,86847.0,86846.0,0.1874355]
[1742790139699,0.1546944,86847.0,86846.0,0.1874355]
[1742790139894,0.1546944,86847.0,86846.0,0.07228]
[1742790140103,0.1546944,86847.0,86846.0,0.0716]
[1742790140310,0.1546944,86847.0,86846.0,0.1867555]
[1742790140499,0.1546944,86847.0,86846.0,0.1873555]
[1742790141407,0.1546944,86847.0,86846.0,0.1157555]
[1742790142106,0.1546944,86847.0,86846.0,0.0006]
[1742790142306,0.1727504,86839.0,86838.0,0.1151658]
[1742790142513,0.058943,86839.0,86838.0,0.1158058]
[1742790142697,0.136043,86839.0,86838.0,0.1158058]
[1742790142903,0.136043,86839.0,86838.0,0.00064]
[1742790143111,0.1151701,86835.0,86834.0,0.1153436]
[1742790143306,0.1165301,86835.0,86834.0,0.1159436]
[1742790143809,0.1165301,86835.0,86834.0,0.1533436]
[1742790144208,0.1165301,86835.0,86834.0,0.1914436]
[1742790145310,0.1165301,86835.0,86834.0,0.1533436]
[1742790145505,0.1165301,86835.0,86834.0,0.1159442]
[1742790145714,0.1145301,86835.0,86834.0,0.1159442]
[1742790146006,0.2296917,86835.0,86834.0,0.0007728]
[1742790146410,0.2296917,86835.0,86834.0,0.0037728]
[1742790146714,0.2296917,86835.0,86834.0,0.1189442]
[1742790147415,0.2286917,86835.0,86834.0,0.1189442]
[1742790148110,0.2286917,86835.0,86834.0,0.1209442]
[1742790150918,0.2286917,86835.0,86834.0,0.0057728]
[1742790151509,0.2286917,86835.0,86834.0,0.0051728]
[1742790151817,0.2286917,86835.0,86834.0,0.0057728]
[1742790153302,0.2682917,86835.0,86834.0,0.0057728]
[1742790153503,0.2682917,86835.0,86834.0,0.0051728]
[1742790153805,0.1561216,86835.0,86800.0,0.68193365]
[1742790154111,0.1151953,86816.0,86815.0,0.08226075]
[1742790154317,0.1151953,86816.0,86815.0,0.11565735]
[1742790154517,0.1165553,86816.0,86815.0,0.11625735]
[1742790154721,0.4773553,86816.0,86815.0,0.11625735]
[1742790154923,0.1955553,86816.0,86815.0,0.11625735]
[1742790155420,0.1955553,86816.0,86815.0,0.19745735]
[1742790155716,0.1955553,86816.0,86815.0,0.20345735]
[1742790156320,0.1955553,86816.0,86815.0,0.20945735]
[1742790156817,0.1965553,86816.0,86815.0,0.20345735]
[1742790160121,0.1975553,86816.0,86815.0,0.19745735]
[1742790168233,0.1975553,86816.0,86815.0,0.08226075]
[1742790168835,0.1975553,86816.0,86815.0,0.15555735]
[1742790170435,0.08236,86816.0,86807.0,0.0001728]
[1742790170631,0.4760059,86808.0,86807.0,0.0001728]
[1742790170827,0.59372591,86808.0,86807.0,0.0001728]
[1742790171030,0.47756591,86808.0,86807.0,0.11538]
[1742790171228,0.59372591,86808.0,86807.0,0.11538]
[1742790171430,0.6815242,86808.0,86807.0,0.0001728]
[1742790171838,0.6815242,86808.0,86807.0,0.0021728]
[1742790172037,0.6931145,86808.0,86807.0,0.0031728]
[1742790173327,0.6931145,86808.0,86807.0,0.0011728]
[1742790173533,0.6931145,86808.0,86807.0,0.0031728]
[1742790175941,0.1152126,86803.0,86794.0,0.0576118]
[1742790176136,0.1152165,86800.0,86799.0,0.11567833]
[1742790176333,0.1152272,86792.0,86783.0,0.11569922]
[1742790176533,0.1152351,86786.0,86785.0,0.0402]
[1742790176736,0.1152378,86784.0,86783.0,0.00046092]
[1742790177042,0.59375781,86784.0,86783.0,0.00046092]
[1742790177243,0.85198583,86784.0,86783.0,0.00046092]
[1742790177437,0.68238583,86784.0,86783.0,0.00046092]
[1742790177844,0.67838583,86784.0,86783.0,0.00046092]
[1742790178840,0.67838583,86784.0,86783.0,0.00146092]
[1742790179445,0.67838583,86784.0,86783.0,0.00246092]
[1742790182144,0.7936151,86784.0,86783.0,0.00246092]
[1742790182442,0.8936151,86784.0,86783.0,0.00246092]
[1742790182642,0.7936151,86784.0,86783.0,0.00246092]
[1742790183044,0.1152484,86776.0,86775.0,0.0001728]
[1742790183236,0.1152564,86770.0,86769.0,0.0382]
[1742790183441,0.11689641,86770.0,86769.0,0.0382]
[1742790184038,0.00164001,86770.0,86769.0,0.1534577]
[1742790184241,0.00164001,86770.0,86769.0,0.1920577]
[1742790185846,0.00164001,86770.0,86769.0,0.1960577]
[1742790186148,8e-05,86771.0,86770.0,0.1152564]
[1742790186348,0.00164001,86771.0,86770.0,0.1152564]
[1742790186537,0.00164001,86771.0,86770.0,0.1947564]
[1742790187754,8e-05,86771.0,86770.0,0.1947564]
[1742790188551,0.001,86771.0,86770.0,0.1947564]
[1742790188751,0.002,86771.0,86770.0,0.1947564]
[1742790189959,0.001,86771.0,86770.0,0.1947564]
[1742790191953,0.1152383,86784.0,86781.0,0.0576203]
[1742790192160,0.17449821,86784.0,86783.0,0.1152391]
[1742790192648,0.17449821,86784.0,86783.0,0.1952391]
[1742790192649,0.00164001,86784.0,86783.0,0.1952391]
[1742790192849,0.11687781,86784.0,86783.0,0.1952391]
[1742790193355,0.00864001,86784.0,86783.0,0.1952391]
[1742790193555,0.007,86784.0,86783.0,0.1952391]
[1742790193951,8e-05,86786.0,86785.0,0.1152365]
[1742790194260,8e-05,86786.0,86785.0,0.12700414]
[1742790194561,0.1152341,86787.0,86786.0,0.1152351]
[1742790194758,0.1152341,86787.0,86786.0,0.1929351]
[1742790194955,0.0576156,86789.0,86788.0,0.1152325]
[1742790195151,0.0001728,86792.0,86786.0,0.1353169]
[1742790195357,0.00177281,86792.0,86791.0,0.1152285]
[1742790195549,0.00173281,86792.0,86791.0,0.1152285]
[1742790195745,0.00173281,86792.0,86791.0,0.1957285]
[1742790195946,0.0001728,86792.0,86791.0,0.1957285]
[1742790196353,0.00173281,86792.0,86791.0,0.1957285]
[1742790196747,0.11696001,86792.0,86791.0,0.1957285]
[1742790197663,0.00373281,86792.0,86791.0,0.1957285]
[1742790197963,0.0575941,86822.0,86791.0,0.1957285]
[1742790197964,0.0004,86808.0,86807.0,0.1152072]
[1742790198256,0.0004,86808.0,86805.0,0.2334086]
[1742790198257,0.1152086,86806.0,86805.0,0.2334086]
[1742790198457,0.11676861,86806.0,86805.0,0.0793]
[1742790198662,0.11676861,86806.0,86805.0,0.1945099]
[1742790198862,0.15736861,86806.0,86805.0,0.1945099]
[1742790199557,0.19806861,86806.0,86805.0,0.1945099]
[1742790200556,0.20206861,86806.0,86805.0,0.1945099]
[1742790200953,0.04626001,86806.0,86805.0,0.1945099]
[1742790201156,0.00556001,86806.0,86805.0,0.1945099]
[1742790201359,0.00956001,86806.0,86805.0,0.1945099]
[1742790202363,0.00956001,86806.0,86805.0,0.20612388]
[1742790202956,0.008,86806.0,86805.0,0.20612388]
[1742790203155,0.006,86806.0,86805.0,0.1945099]
[1742790203358,0.006,86806.0,86805.0,0.2059628]
[1742790203954,0.0004,86808.0,86805.0,0.2059628]
[1742790203955,0.0004,86808.0,86807.0,0.1152072]
[1742790204858,0.0004,86808.0,86807.0,0.2322072]
[1742790206861,0.1156059,86808.0,86807.0,0.1940072]
[1742790207166,0.11716591,86808.0,86807.0,0.1557072]
[1742790207561,0.11716591,86808.0,86807.0,0.1577072]
[1742790207763,0.19846591,86808.0,86807.0,0.1577072]
[1742790208165,0.20046591,86808.0,86807.0,0.1567072]
[1742790209677,0.20046591,86808.0,86807.0,0.1162072]
[1742790209869,0.56126591,86808.0,86807.0,0.001]
[1742790210168,0.56126591,86808.0,86776.0,0.057622]
[1742790210169,0.1152497,86777.0,86776.0,0.057622]
[1742790210465,0.1152497,86777.0,86776.0,0.1728631]
[1742790210466,0.1728738,86777.0,86776.0,0.1728631]
[1742790210666,0.17443381,86777.0,86776.0,0.1728631]
[1742790210867,0.05918411,86777.0,86776.0,0.2304852]
[1742790211067,0.0576241,86777.0,86776.0,0.2304852]
[1742790211269,0.0961241,86777.0,86776.0,0.2304852]
[1742790211464,0.1364241,86777.0,86776.0,0.2761852]
[1742790211862,0.13806411,86777.0,86776.0,0.2791852]
[1742790212774,0.13806411,86777.0,86776.0,0.2771852]
[1742790216168,0.13806411,86777.0,86776.0,0.2364852]
[1742790217375,0.13806411,86777.0,86776.0,0.2767852]
[1742790218977,0.13806411,86777.0,86776.0,0.063622]
[1742790219484,0.13806411,86777.0,86776.0,0.006]
[1742790219676,0.13806411,86777.0,86776.0,0.1212484]
[1742790221078,0.1152577,86769.0,86768.0,0.0001728]
[1742790221377,0.0576336,86762.0,86758.0,0.079]
[1742790221561,0.0576336,86762.0,86752.0,0.0423]
[1742790221562,0.1152723,86758.0,86752.0,0.0423]
[1742790221768,0.1152803,86752.0,86751.0,0.20516629]
[1742790222061,0.2314003,86752.0,86751.0,0.32044789]
[1742790222266,0.23296031,86752.0,86751.0,0.32044789]
[1742790222673,0.31356031,86752.0,86751.0,0.32044789]
[1742790223063,0.31156031,86752.0,86751.0,0.32044789]
[1742790223266,0.31156031,86752.0,86751.0,0.36444789]
[1742790223668,0.31156031,86752.0,86751.0,0.15974269]
[1742790224084,0.31156031,86752.0,86751.0,0.00346109]
[1742790224771,0.31156031,86752.0,86751.0,0.00746109]
[1742790225180,0.31156031,86752.0,86751.0,0.12274269]
[1742790225368,0.31156031,86752.0,86751.0,0.00746109]
[1742790225869,0.1152909,86744.0,86743.0,0.00011575]
[1742790226069,0.1152976,86740.0,86739.0,0.1152966]
[1742790226375,0.11693761,86740.0,86739.0,0.1152966]
[1742790226576,0.20889498,86740.0,86739.0,0.1152966]
[1742790226968,0.56969498,86740.0,86739.0,0.1152966]
[1742790227281,0.32501498,86740.0,86739.0,0.1566966]
[1742790228771,0.32501498,86740.0,86739.0,0.1576966]
[1742790231081,0.32501498,86740.0,86739.0,0.1586966]
[1742790231379,0.08214001,86740.0,86739.0,0.1586966]
[1742790231581,0.19743621,86740.0,86739.0,0.1586966]
[1742790232786,0.08214001,86740.0,86739.0,0.1586966]
[1742790233681,0.08214001,86740.0,86739.0,0.5194966]
[1742790233881,0.00164001,86740.0,86739.0,0.5194966]
[1742790234080,8e-05,86741.0,86740.0,0.1152962]
[1742790234280,0.00164001,86741.0,86740.0,0.1152962]
[1742790234487,0.00164001,86741.0,86740.0,0.1575962]
[1742790235279,0.00168001,86741.0,86740.0,0.1585962]
[1742790235484,8e-05,86741.0,86740.0,0.1595962]
[1742790235880,0.9904376,86754.0,86753.0,0.115279]
[1742790236079,0.99203761,86754.0,86753.0,0.115279]
[1742790236279,1.00114483,86754.0,86753.0,0.115279]
[1742790237587,1.07974483,86754.0,86753.0,0.115279]
[1742790239392,1.07974483,86754.0,86753.0,0.156979]
[1742790242479,0.96446723,86754.0,86753.0,0.156979]
[1742790242695,0.96446723,86754.0,86753.0,0.195379]
[1742790242696,0.01070723,86754.0,86753.0,0.195379]
[1742790242886,8e-05,86755.0,86754.0,0.1152776]
[1742790243196,0.15887631,86755.0,86754.0,0.1974776]
[1742790243494,0.19847631,86755.0,86754.0,0.1974776]
[1742790243790,0.19847631,86755.0,86754.0,0.2067079]
[1742790243791,0.04120001,86755.0,86754.0,0.2067079]
[1742790244002,8e-05,86756.0,86755.0,0.1152763]
[1742790244494,0.00156001,86756.0,86755.0,0.1965763]
[1742790244793,0.1154426,86760.0,86759.0,0.115271]
[1742790245096,0.11700261,86760.0,86759.0,0.115271]
[1742790245493,0.11700261,86760.0,86759.0,0.155271]
[1742790245994,0.11700261,86760.0,86759.0,0.115271]
[1742790246694,0.11700261,86760.0,86759.0,0.155271]
[1742790246895,0.11800261,86760.0,86759.0,0.155271]
[1742790248087,0.23412261,86760.0,86759.0,0.115271]
[1742790248794,0.23412261,86760.0,86759.0,0.153971]
[1742790249394,0.23412261,86760.0,86759.0,0.0387]
[1742790249700,0.115271,86759.0,86758.0,0.0407]
[1742790249894,0.1152776,86754.0,86753.0,0.157479]
[1742790250088,0.11687761,86754.0,86753.0,0.0422]
[1742790250290,0.11687761,86754.0,86753.0,0.157479]
[1742790250792,0.11687761,86754.0,86753.0,0.196579]
[1742790251396,0.11687761,86754.0,86753.0,0.0813]
[1742790251590,0.11687761,86754.0,86753.0,0.196579]
[1742790252189,0.11687761,86754.0,86753.0,0.0813]
[1742790252389,0.11687761,86754.0,86753.0,0.196579]
[1742790255899,0.00160001,86754.0,86753.0,0.196579]
[1742790256104,0.1538678,86762.0,86759.0,0.115271]
[1742790256302,0.00177291,86760.0,86759.0,0.476071]
[1742790257197,0.15704261,86760.0,86759.0,0.555871]
[1742790257603,0.15804261,86760.0,86759.0,0.555871]
[1742790257794,0.00277291,86760.0,86759.0,0.555871]
[1742790257993,0.0011729,86760.0,86759.0,0.555871]
[1742790258394,0.1164426,86760.0,86759.0,0.555871]
[1742790258607,0.16000261,86760.0,86759.0,0.555871]
[1742790259200,0.16910922,86760.0,86759.0,0.555871]
[1742790259508,0.20990923,86760.0,86759.0,0.156071]
[1742790260102,0.1152723,86758.0,86757.0,0.0576362]
[1742790260296,0.1152723,86758.0,86753.0,0.0409]
[1742790260297,0.1729157,86756.0,86755.0,0.1729131]
[1742790260493,0.1729157,86756.0,86755.0,0.2126131]
[1742790260494,0.01066663,86756.0,86755.0,0.2126131]
[1742790260908,0.195671,86759.0,86758.0,0.1152723]
[1742790261105,0.20642534,86759.0,86758.0,0.1152723]
[1742790262209,0.19731101,86759.0,86758.0,0.1152723]
[1742790262897,0.19831101,86759.0,86758.0,0.1152723]
[1742790264303,0.19931101,86759.0,86758.0,0.1152723]
[1742790265013,0.08404001,86759.0,86758.0,0.1152723]
[1742790265212,0.19931101,86759.0,86758.0,0.1152723]
[1742790265711,0.11891101,86759.0,86758.0,0.1152723]
[1742790265898,0.15911101,86759.0,86758.0,0.1152723]
[1742790266502,0.15911101,86759.0,86758.0,0.12455907]
[1742790270513,0.15911101,86759.0,86758.0,0.1152723]
[1742790278518,0.15911101,86759.0,86758.0,0.1535723]
[1742790279419,0.15911101,86759.0,86758.0,0.1956723]
[1742790289219,0.3608,86770.0,86766.0,0.0576305]
[1742790289523,0.00112001,86770.0,86769.0,0.1152577]
[1742790289728,0.02661437,86777.0,86775.0,0.1152497]
[1742790290023,0.00144001,86776.0,86775.0,0.4766497]
[1742790290224,0.0004,86776.0,86775.0,0.4766497]
[1742790290728,0.0004,86776.0,86775.0,0.48606097]
[1742790290920,0.08034001,86776.0,86775.0,0.56606097]
[1742790291320,0.08534001,86776.0,86775.0,0.5566497]
[1742790292120,0.20058841,86776.0,86775.0,0.0006]
[1742790292320,0.115259,86769.0,86768.0,0.1728853]
[1742790292521,0.116339,86769.0,86768.0,0.2535253]
[1742790292732,0.197239,86769.0,86768.0,0.2535253]
[1742790293530,0.201239,86769.0,86768.0,0.2535253]
[1742790293723,0.204239,86769.0,86768.0,0.2535253]
[1742790299430,0.08898,86769.0,86768.0,0.2535253]
[1742790299631,0.2042377,86769.0,86768.0,0.2535253]
[1742790300838,0.08898,86769.0,86768.0,0.2535253]
[1742790301625,0.2042377,86769.0,86768.0,0.2535253]
[1742790302629,0.00808,86769.0,86768.0,0.2535253]
[1742790302836,0.007,86769.0,86768.0,0.2535253]
[1742790305139,0.0004,86776.0,86772.0,0.0576265]
[1742790305445,0.0382,86775.0,86774.0,0.1152511]
[1742790305635,0.08144001,86775.0,86774.0,0.1982511]
[1742790305941,0.19668971,86775.0,86774.0,0.1982511]
[1742790306141,0.08144001,86775.0,86774.0,0.1982511]
[1742790307237,0.08144001,86775.0,86774.0,0.20777261]
[1742790307646,0.08144001,86775.0,86774.0,0.56857261]
[1742790307837,0.0804,86775.0,86774.0,0.56857261]
[1742790308237,0.08152001,86775.0,86774.0,0.56857261]
[1742790309148,0.08652001,86775.0,86774.0,0.56857261]
[1742790309736,0.09152001,86775.0,86774.0,0.56857261]
[1742790313156,0.09152001,86775.0,86774.0,0.20777261]
[1742790313353,0.09152001,86775.0,86774.0,0.56857261]
[1742790315052,0.0904,86775.0,86774.0,0.56857261]
[1742790315445,0.09148,86775.0,86774.0,0.56857261]
[1742790316854,0.2067297,86775.0,86774.0,0.56857261]
[1742790317152,0.2067297,86775.0,86774.0,0.5590511]
[1742790318450,0.2067297,86775.0,86774.0,0.56851123]
[1742790320855,0.09148,86775.0,86774.0,0.56851123]
[1742790321953,0.0904,86775.0,86774.0,0.56851123]
[1742790322254,0.09148,86775.0,86774.0,0.56851123]
[1742790322652,0.115411,86784.0,86783.0,0.1152391]
[1742790322857,0.158231,86784.0,86783.0,0.1159591]
[1742790323756,0.0429929,86784.0,86783.0,0.1548591]
[1742790323952,0.0576091,86799.0,86791.0,0.1152285]
[1742790323953,0.0004,86792.0,86791.0,0.1152285]
[1742790324152,0.0004,86792.0,86791.0,0.1159085]
[1742790324153,0.00108,86792.0,86791.0,0.1159085]
[1742790324346,0.00104,86792.0,86791.0,0.1159085]
[1742790324561,0.00100001,86792.0,86791.0,0.1558085]
[1742790324759,0.1156272,86792.0,86791.0,0.1558085]
[1742790324956,0.1163472,86792.0,86791.0,0.1558085]
[1742790325352,0.1163472,86792.0,86791.0,0.1962085]
[1742790325757,0.1203472,86792.0,86791.0,0.1962085]
[1742790327158,0.1591472,86792.0,86791.0,0.1962085]
[1742790328869,0.1571472,86792.0,86791.0,0.1962085]
[1742790330252,0.04392,86792.0,86791.0,0.1962085]
[1742790331263,0.1591472,86792.0,86791.0,0.1962085]
[1742790332064,0.04192,86792.0,86791.0,0.1962085]
[1742790332267,0.0001729,86800.0,86796.0,0.1152218]
[1742790332468,0.00105291,86800.0,86799.0,0.1152179]
[1742790332781,0.00105291,86800.0,86799.0,0.1160979]
[1742790333274,0.00105291,86800.0,86799.0,0.1981979]
[1742790333477,0.0391,86812.0,86807.0,0.1152072]
[1742790333678,0.00128001,86808.0,86807.0,0.1161272]
[1742790334087,0.00128001,86808.0,86807.0,0.2397272]
[1742790334979,8e-05,86813.0,86812.0,0.1152006]
[1742790335186,8e-05,86813.0,86812.0,0.1257176]
[1742790335381,0.079,86819.0,86815.0,0.1151966]
[1742790335592,0.00105281,86816.0,86815.0,0.1160366]
[1742790336273,0.00105281,86816.0,86815.0,0.1965366]
[1742790336676,0.0387728,86816.0,86815.0,0.1965366]
[1742790337279,0.0001728,86816.0,86815.0,0.1965366]
[1742790337474,0.0001728,86816.0,86815.0,0.3124166]
[1742790337475,0.0031728,86816.0,86815.0,0.3124166]
[1742790338182,0.0061728,86816.0,86815.0,0.3124166]
[1742790344793,0.003,86816.0,86815.0,0.3124166]
[1742790344989,8e-05,86819.0,86815.0,0.3124166]
[1742790344990,0.0414,86827.0,86823.0,0.115186]
[1742790345183,0.0414,86827.0,86823.0,0.116026]
[1742790345696,0.0414,86827.0,86823.0,0.198726]
[1742790346483,8e-05,86826.0,86823.0,0.198726]
[1742790347091,0.0014,86824.0,86823.0,0.198726]
[1742790350601,0.0406,86824.0,86823.0,0.198726]
[1742790356606,0.0014,86824.0,86823.0,0.198726]
[1742790357602,0.0401,86830.0,86829.0,0.1151781]
[1742790357909,0.0401,86830.0,86829.0,0.5926581]
[1742790358507,0.0401,86830.0,86829.0,0.6733581]
[1742790360908,0.4183784,86846.0,86836.0,0.0575841]
[1742790361108,0.00132,86840.0,86839.0,0.1151648]
[1742790361304,0.00132,86840.0,86839.0,0.1160848]
[1742790361910,0.00132,86840.0,86839.0,0.4768848]
[1742790362212,0.0004,86840.0,86839.0,0.5584848]
[1742790362713,0.0004,86840.0,86839.0,0.56794808]
[1742790366018,0.0001728,86848.0,86847.0,0.1151542]
[1742790366214,0.0001728,86848.0,86847.0,0.5925142]
[1742790366610,0.0001728,86848.0,86847.0,0.7116142]
[1742790367717,0.1153257,86848.0,86847.0,0.4767942]
[1742790367916,0.1162457,86848.0,86847.0,0.4767942]
[1742790368320,0.2367457,86848.0,86847.0,0.4767942]
[1742790371021,0.2367457,86848.0,86847.0,0.36164]
[1742790371218,0.2367457,86848.0,86847.0,0.4767942]
[1742790373423,0.0010928,86848.0,86847.0,0.4767942]
[1742790373624,0.0001728,86848.0,86847.0,0.4767942]
[1742790373812,0.0793728,86848.0,86847.0,0.6712742]
[1742790374419,0.0802128,86848.0,86847.0,0.6712742]
[1742790374621,0.1953657,86848.0,86847.0,0.6712742]
[1742790374929,0.1953657,86848.0,86847.0,0.5555942]
[1742790381924,0.1953657,86848.0,86847.0,0.1947942]
[1742790382616,0.0802128,86848.0,86847.0,0.1947942]
[1742790382824,0.1953657,86848.0,86847.0,0.5555942]
[1742790385030,0.0010128,86848.0,86847.0,0.5555942]
[1742790385229,0.0402728,86848.0,86847.0,0.5555942]
[1742790385826,0.0001728,86848.0,86847.0,0.5555942]
[1742790387624,0.15372571,86848.0,86847.0,0.5555942]
[1742790388031,0.19522571,86848.0,86847.0,0.5555942]
[1742790393532,0.19522571,86848.0,86847.0,0.4767942]
[1742790394539,0.19522571,86848.0,86847.0,0.5575942]
[1742790404732,0.00077281,86848.0,86847.0,0.5575942]
[1742790404947,0.0001728,86848.0,86847.0,0.5575942]
[1742790417643,0.00105281,86848.0,86847.0,0.5575942]
[1742790418049,0.0001728,86848.0,86847.0,0.5575942]
[1742790418245,0.00077281,86848.0,86847.0,0.5575942]
[1742790418645,0.0001728,86848.0,86847.0,0.5575942]
[1742790420557,0.1153257,86848.0,86847.0,0.5575942]
[1742790420760,0.0403728,86848.0,86847.0,0.5575942]
[1742790421059,0.04125281,86848.0,86847.0,0.5575942]
[1742790421259,0.08015281,86848.0,86847.0,0.5575942]
[1742790423157,0.0001728,86848.0,86847.0,0.5575942]
[1742790423858,0.0010928,86848.0,86847.0,0.5575942]
[1742790424764,0.0394928,86848.0,86847.0,0.5575942]
[1742790425364,0.0010928,86848.0,86847.0,0.5575942]
[1742790425765,0.0001728,86848.0,86847.0,0.5575942]
[1742790426068,0.0004,86856.0,86855.0,0.1151436]
[1742790426365,0.0004,86856.0,86855.0,0.4767836]
[1742790426567,0.0004,86856.0,86855.0,0.56217733]
[1742790426870,0.00132,86856.0,86855.0,0.56217733]
[1742790427163,0.0004,86856.0,86855.0,0.56217733]
[1742790428460,0.00124,86856.0,86855.0,0.56217733]
[1742790428667,0.0004,86856.0,86855.0,0.56217733]
[1742790428967,0.00132,86856.0,86855.0,0.56217733]
[1742790429471,0.08002,86856.0,86855.0,0.56217733]
[1742790431166,0.1942423,86856.0,86855.0,0.56217733]
[1742790431475,0.19512231,86856.0,86855.0,0.5521836]